[Event "Romanian Superleague 2022"]
[Site "Oradea"]
[Date "2022.09.27"]
[Round "7.15"]
[White "Iordachescu, Viorel"]
[Black "Jianu, Vlad-Cristian"]
[Result "1/2-1/2"]
[ECO "B12"]
[WhiteElo "2585"]
[BlackElo "2511"]
[Annotator "TA"]
[PlyCount "119"]
[EventDate "2022.09.21"]
[EventType "team-tourn"]
[EventCountry "ROU"]
[SourceTitle "playchess.com"]
[Source "ChessBase"]
[SourceQuality "1"]
[TimeControl "40/5400+30:1800+30"]

{[%evp 12,119,12,20,14,14,29,1,18,0,-6,-40,-34,-39,-37,-35,-33,-36,-19,-38,-39,-57,-2,-11,0,-12,-8,-8,-8,-8,0,-2,0,0,19,16,39,-10,-9,-38,0,-37,-37,-41,-44,-75,-75,-74,38,64,588,597,596,583,594,588,583,550,569,402,387,395,370,285,271,270,258,73,69,66,66,66,60,70,68,5,60,60,60,60,60,60,206,197,207,200,161,147,489,453,390,0,353,0,391,8,5,0,0,0,0,0,0,0,0,0,0,0,0,0]} 1. e4 {[%emt 0:00:24]} c6 {[%emt 0:00:06]} 2. d4 {[%emt 0:00:11]} d5 {[%emt 0:00:05]} 3. e5 {[%emt 0:00:06]} Bf5 {[%emt 0:00:05]} 4. Nf3 {[%emt 0:00:14]} e6 {[%emt 0:00:06]} 5. Be2 {[%emt 0:00:07]} c5 {[%emt 0:00:21]} 6. O-O {[%emt 0:00:39]} Nc6 {[%emt 0:00:24]} 7. c3 {[%emt 0:00:08]} cxd4 {[%emt 0:00:38] B12: Caro-Kann: Advance Variation.} 8. Nxd4 {[%emt 0:00:07]} Nge7 {[%emt 0:00:41]} 9. Qb3 {[%emt 0:05:33]} Qd7 {[%emt 0:12:36] [#]} 10. Nxf5 $146 {[%emt 0:13:19]} ({Predecessor:} 10. f4 Bg6 11. Be3 Nf5 12. Nxf5 Bxf5 13. Nd2 h5 14. Nf3 Be7 15. Rad1 O-O 16. Nd4 Nxd4 17. Bxd4 {½-½ (38) Fressinet,L (2662)-Kasimdzhanov,R (2683) Riadh 2017}) 10... Nxf5 {[%emt 0:00:07]} 11. Bf4 {[%emt 0:00:07]} h6 {[%emt 0:17:55]} 12. h3 {[%emt 0:05:52]} g5 {[%emt 0:03:24][%cal Bg7g5,Bg5g4][%mdl 32]} 13. Bh2 {[%emt 0:00:28]} Bg7 {[%emt 0:00:08]} 14. Bb5 {[%emt 0:08:12]} h5 {[%emt 0:27:40]} 15. Nd2 {[%emt 0:08:26]} g4 {[%emt 0:04:47]} 16. c4 {[%emt 0:00:37]} a6 {[%emt 0:05:06]} (16... O-O-O $15) 17. Bxc6 $11 {[%emt 0:04:50]} bxc6 {[%emt 0:00:05]} 18. Rad1 {[%emt 0:04:36][%cal Od2e4]} Qa7 {[%emt 0:04:45]} 19. cxd5 {[%emt 0:05:31]} cxd5 {[%emt 0:00:49]} 20. hxg4 {[%emt 0:06:19]} hxg4 {[%emt 0:00:11]} 21. Qa4+ {[%emt 0:00:19]} Kf8 {[%emt 0:02:06][%cal Be8f8,Bf8g8,Bg8g7][%mdl 32]} 22. Qxg4 {[%emt 0:01:45]} Rb8 {[%emt 0:01:53]} 23. Nf3 {[%emt 0:03:01] Inhibits Qd4.} Rxb2 {[%emt 0:02:35]} 24. Qa4 {[%emt 0:00:34]} (24. Bf4 $14 {should be considered.}) 24... Qb7 {[%emt 0:02:44]} 25. Rc1 {[%emt 0:03:56]} Kg8 {[%emt 0:05:34]} (25... Bh6 $5 {[%cal Rh6c1]} 26. Bf4 Rb4 27. Bxh6+ (27. Rc8+ Kg7 $17) 27... Nxh6 $11) 26. Rc3 {[%emt 0:07:35]} Rb4 {[%emt 0:01:28]} 27. Qc2 {[%emt 0:08:13]} Bf8 {[%emt 0:01:29]} 28. Rc8 {[%emt 0:01:20]} Kg7 {[%emt 0:00:57]} 29. a3 {[%emt 0:03:49]} Rb2 {[%emt 0:01:04]} (29... Rg4 $17 {Strongly threatening ...d4.} 30. Rc7 Qa8) 30. Qc1 $14 {[%emt 0:00:07] The board is on fire.} Rh6 $2 {[%emt 0:01:22][%mdl 8192] [#]} ({Better is} 30... Rb1 $14 31. Qg5+ Kh7 32. Rxb1 (32. Qh5+ Nh6 $11) 32... Qxb1+ 33. Rc1 Qb8) 31. Bf4 $1 $18 {[%emt 0:02:42]} ({Worse is} 31. Qg5+ Rg6 32. Qd8 Qe7 $17) 31... Rg6 {[%emt 0:00:03]} 32. Bg5 {[%emt 0:00:12] And now Bf6+ would win.} Be7 {[%emt 0:00:37] Against Bf6+} 33. Bxe7 {[%emt 0:01:31]} Nxe7 {[%emt 0:00:06]} 34. Rc7 {[%emt 0:00:52]} Qb3 {[%emt 0:00:20] ( -> ...Qxf3)} 35. Nh4 {[%emt 0:00:50]} (35. Qf4 Nf5 $16) 35... Rg4 {[%emt 0:00:32]} 36. Rxe7 {[%emt 0:00:45][%cal Oc1c7]} Rc2 {[%emt 0:00:03] Against Qc7} 37. Qe3 {[%emt 0:02:27]} Qxe3 {[%emt 0:00:01]} 38. fxe3 {[%emt 0:00:05]} Rxh4 {[%emt 0:00:03]} 39. Rexf7+ $2 {[%emt 0:01:22][%mdl 4096] Endgame KRR-KRR} (39. Rfxf7+ $18 {is the precise move to win.} Kg8 40. Rg7+ Kh8 41. Rg6) 39... Kg8 $16 {[%emt 0:00:04]} 40. Rf8+ {[%emt 0:00:00]} Kg7 {[%emt 0:00:00]} 41. R1f7+ {[%emt 0:02:59]} Kg6 {[%emt 0:00:06]} 42. Re7 {[%emt 0:01:22]} Re4 $1 {[%emt 0:03:12][%csl LRe3,LRe5]} 43. Rf6+ {[%emt 0:05:08]} (43. Rxe6+ $14 Kg5 44. Rf3 (44. Rxa6 Rxe3 45. Ra7 Rxe5 $14)) 43... Kg5 {[%emt 0:00:19]} (43... Kh5 $1 $11) 44. Rg7+ $14 {[%emt 0:01:03]} Kh5 {[%emt 0:00:06]} 45. Rf8 {[%emt 0:02:49][%cal Rf8h8]} Kh6 {[%emt 0:00:32]} 46. Rg3 {[%emt 0:00:30][%cal Rf8h8]} Kh7 {[%emt 0:00:11] Prevents Rh8+.} (46... Rc1+ $14 47. Kf2 Kh7) 47. Rf7+ $18 {[%emt 0:00:19]} Kh8 {[%emt 0:00:17] [#]} 48. Rf6 $1 {[%emt 0:02:04][%cal Rf6h6]} Kh7 {[%emt 0:00:01] Against Rh6+} 49. Rxe6 {[%emt 0:00:22]} Re2 $2 {[%emt 0:00:09][%mdl 8192]} (49... a5 $16 50. Ra6 a4) 50. Re7+ {[%emt 0:06:27]} Kh6 {[%emt 0:00:01]} 51. Re6+ {[%emt 0:07:37]} Kh7 $1 {[%emt 0:00:05]} 52. Rg5 $2 {[%emt 0:00:55]} (52. Rxa6 $18 {aiming for e6.} R4xe3 53. Rxe3 Rxe3 54. a4) 52... Ra4 $2 {[%emt 0:11:18][%mdl 8192]} (52... R4xe3 $11 53. Rxa6 Rxe5 54. Rxe5 Rxe5) 53. Rf6 $2 {[%emt 0:05:01]} (53. Re7+ $18 Kh6 54. Reg7) 53... Rxe3 $11 {[%emt 0:01:39] The position is equal.} 54. e6 {[%emt 0:00:39]} Raxa3 {[%emt 0:02:20]} 55. Rxd5 {[%emt 0:00:32] Threatens to win with Rd7+.} Kg7 {[%emt 0:03:09]} 56. Rdf5 {[%emt 0:01:58]} Re1+ {[%emt 0:00:09]} 57. Kf2 {[%emt 0:00:24]} Rae3 {[%emt 0:00:13]} 58. Rf7+ {[%emt 0:00:37]} Kg6 {[%emt 0:00:15]} 59. R5f6+ {[%emt 0:00:41]} Kg5 {[%emt 0:00:25]} 60. Rf5+ {[%emt 0:00:12] White really could win this.  Weighted Error Value: White=0.40/Black=0.41} 1/2-1/2

[Event "Romanian Superleague 2022"]
[Site "Oradea"]
[Date "2022.09.27"]
[Round "7.16"]
[White "Parligras, Mircea-Emilian"]
[Black "Szabo, Gergely-Andras-Gyula"]
[Result "1/2-1/2"]
[ECO "D31"]
[WhiteElo "2560"]
[BlackElo "2512"]
[Annotator "TA"]
[PlyCount "69"]
[EventDate "2022.09.21"]
[EventType "team-tourn"]
[EventCountry "ROU"]
[SourceTitle "playchess.com"]
[Source "ChessBase"]
[SourceQuality "1"]
[TimeControl "40/5400+30:1800+30"]

{[%evp 9,69,19,22,28,19,31,19,35,28,33,31,25,24,24,19,16,10,12,27,17,17,25,27,18,29,-7,1,0,6,0,1,5,8,-14,13,18,27,19,47,30,31,30,39,26,25,28,22,32,22,3,42,42,42,43,52,52,52,51,52,52,52,52]} 1. d4 {[%emt 0:00:03]} d5 {[%emt 0:00:35]} 2. c4 {[%emt 0:00:27]} e6 {[%emt 0:00:05]} 3. Nc3 {[%emt 0:00:48]} a6 {[%emt 0:00:05]} 4. cxd5 {[%emt 0:00:32]} exd5 {[%emt 0:00:04]} 5. Bf4 {[%emt 0:00:48]} Nf6 {[%emt 0:02:55]} 6. e3 {[%emt 0:00:44] D31: Queen's Gambit Declined: Semi-Slav without ...Nf6 (+ Marshall Gambit and Noteboom) and Exchange Variation lines without ...Nf6.} c5 {[%emt 0:02:46]} 7. Nge2 {[%emt 0:02:18]} Nc6 {[%emt 0:08:32]} 8. g3 {[%emt 0:02:06] The position is equal.} Bg4 {[%emt 0:06:52]} 9. Bg2 {[%emt 0:01:10] Prevents Bf3.} cxd4 {[%emt 0:06:01]} 10. exd4 {[%emt 0:00:16]} Be7 {[%emt 0:04:43]} 11. O-O {[%emt 0:06:35]} O-O {[%emt 0:06:06]} 12. h3 {[%emt 0:03:03]} Bxe2 {[%emt 0:03:39]} 13. Nxe2 {[%emt 0:10:11]} Qb6 {[%emt 0:01:34]} 14. Rb1 {[%emt 0:04:46]} Rad8 {[%emt 0:04:23]} 15. Be3 {[%emt 0:04:42]} Rfe8 {[%emt 0:06:26] [#]} 16. Nc3 $146 {[%emt 0:07:06]} ({Predecessor:} 16. b4 Ne4 17. a3 Bf6 18. Qd3 Qb5 19. Qxb5 axb5 20. Rfd1 Rd7 21. Rbc1 Ra8 22. Rd3 {½-½ (59) Mirzoev,E (2467)-Schmidek,E (2383) Berlin 2022}) 16... h6 {[%emt 0:04:51]} 17. Qd2 {[%emt 0:13:07]} Bf8 {[%emt 0:05:11]} 18. Rfd1 {[%emt 0:01:12]} Na5 {[%emt 0:06:00]} 19. Qd3 {[%emt 0:06:22]} Nc4 {[%emt 0:03:00]} 20. Bf4 {[%emt 0:00:30][%cal Oc3d5]} Qe6 {[%emt 0:03:40]} (20... Nxb2 $2 21. Qc2 $18) 21. Kf1 {[%emt 0:08:30]} g5 {[%emt 0:07:37]} 22. Re1 {[%emt 0:15:38]} Qc6 {[%emt 0:00:47]} 23. Be5 {[%emt 0:00:32] [#] Hoping for Bxf6.} Bg7 {[%emt 0:00:57][%cal Of6e4]} 24. b3 {[%emt 0:03:18]} (24. Bxf6 $5 Qxf6 25. b3 (25. Bxd5 Rxe1+ 26. Kxe1 b5 $11) 25... Rxe1+ 26. Rxe1 $14) 24... Nxe5 {[%emt 0:01:05]} 25. dxe5 {[%emt 0:00:07]} Ne4 {[%emt 0:01:19]} 26. Nxe4 {[%emt 0:01:41]} dxe4 {[%emt 0:00:09]} 27. Qxe4 {[%emt 0:00:03]} Qb5+ {[%emt 0:07:40]} 28. Qc4 {[%emt 0:00:32]} Rxe5 {[%emt 0:01:25]} 29. Rxe5 {[%emt 0:01:37]} Bxe5 {[%emt 0:00:11]} 30. Qxb5 {[%emt 0:02:49] White is slightly better.} axb5 {[%emt 0:00:04]} 31. Bxb7 $14 {[%emt 0:00:34] KRB-KRB} Rd2 {[%emt 0:03:56]} 32. Re1 {[%emt 0:00:08]} Bd4 {[%emt 0:00:10]} 33. Re2 {[%emt 0:00:05]} Rxe2 {[%emt 0:00:23]} 34. Kxe2 {[%emt 0:00:05]} b4 {[%emt 0:00:22]} 35. f3 {[%emt 0:00:34] Weighted Error Value: White=0.05 (flawless) /Black=0.07 (flawless)} 1/2-1/2

[Event "Romanian Superleague 2022"]
[Site "Oradea"]
[Date "2022.09.27"]
[Round "7.17"]
[White "Nevednichy, Vladislav"]
[Black "Gavrilescu, David"]
[Result "1-0"]
[ECO "B45"]
[WhiteElo "2472"]
[BlackElo "2523"]
[Annotator "TA"]
[PlyCount "101"]
[EventDate "2022.09.21"]
[EventType "team-tourn"]
[EventCountry "ROU"]
[SourceTitle "playchess.com"]
[Source "ChessBase"]
[SourceQuality "1"]
[TimeControl "40/5400+30:1800+30"]

{[%evp 12,101,35,26,26,24,25,30,26,34,37,30,17,19,39,41,36,39,33,20,25,16,40,44,34,42,26,46,33,0,66,69,115,89,90,84,89,79,74,0,84,0,76,62,102,62,63,67,87,79,105,89,108,47,49,52,50,68,70,54,74,74,66,63,91,110,179,160,192,180,201,203,203,202,208,200,193,131,120,120,131,131,131,131,131,131,119,118,303,296,553,587]} 1. e4 {[%emt 0:00:04]} c5 {[%emt 0:00:19]} 2. Nf3 {[%emt 0:00:10][%cal Bg1f3,Bf3d4,Bd4b5][%mdl 32]} e6 {[%emt 0:00:36]} 3. d4 {[%emt 0:00:14]} cxd4 {[%emt 0:00:09]} 4. Nxd4 {[%emt 0:00:02]} Nf6 {[%emt 0:00:28]} 5. Nc3 {[%emt 0:00:12]} Nc6 {[%emt 0:00:16]} 6. Ndb5 {[%emt 0:04:49]} Bc5 {[%emt 0:01:24]} 7. Bf4 {[%emt 0:06:07] [#] Black must now prevent Nc7+. The main line 7.Bf4 scores better than 7.Nd6+.} O-O {[%emt 0:00:20] B45: Sicilian Four Knights.} 8. Bc7 {[%emt 0:00:11]} Qe7 {[%emt 0:00:19]} 9. Bd6 $1 {[%emt 0:00:49]} Bxd6 {[%emt 0:00:09] White has an edge.} 10. Qxd6 {[%emt 0:00:07]} Qd8 {[%emt 0:00:06]} 11. O-O-O {[%emt 0:01:45]} a6 {[%emt 0:00:10]} 12. Nd4 {[%emt 0:01:11]} Ne7 {[%emt 0:00:13]} (12... Qb6 {with more complications.} 13. Kb1 Ng4 14. Qf4 Nxd4 15. Qxg4 Nb5) 13. h4 {[%emt 0:09:35]} b5 {[%emt 0:00:37]} 14. h5 {[%emt 0:01:02]} h6 {[%emt 0:00:10]} 15. g4 {[%emt 0:15:19][%cal Og4g5]} Bb7 {[%emt 0:01:01]} 16. f3 {[%emt 0:00:44][%cal Og4g5]} Re8 {[%emt 0:00:25] [#]} 17. a3 $146 {[%emt 0:03:08]} ({Predecessor:} 17. Rh2 Qb8 18. Nb3 Bc6 19. a3 Rc8 20. Rhd2 Qxd6 21. Rxd6 Rc7 22. Be2 Nc8 23. R6d2 {1-0 (50) Nevednichy,V (2514)-Pastar,S (2350) Backa Palanka 2021}) 17... Qb8 {[%emt 0:02:05]} 18. Nb3 {[%emt 0:05:02]} Bc6 {[%emt 0:12:27]} 19. Qxb8 {[%emt 0:02:20]} Raxb8 {[%emt 0:00:45]} 20. Rh2 {[%emt 0:01:10]} e5 {[%emt 0:06:28]} (20... d5 $11) 21. Na5 {[%emt 0:06:40]} Ba8 {[%emt 0:12:08]} (21... Rb6 $14 {feels stronger.}) 22. Rhd2 {[%emt 0:07:10]} Rb6 {[%emt 0:11:15]} 23. b4 {[%emt 0:02:14]} Rd8 {[%emt 0:16:45]} 24. Rd6 {[%emt 0:07:03]} Rdb8 {[%emt 0:01:36]} 25. R6d2 {[%emt 0:00:07]} Rd8 $1 {[%emt 0:00:19]} 26. Rd6 {[%emt 0:00:08]} Rdb8 {[%emt 0:00:04]} 27. Nb3 {[%emt 0:01:24]} Nc8 {[%emt 0:00:07]} 28. R6d2 {[%emt 0:04:12] White has more active pieces.} Kf8 {[%emt 0:03:05]} 29. Na5 {[%emt 0:06:02]} Ne7 {[%emt 0:06:05]} 30. Kb2 {[%emt 0:01:01]} Ke8 {[%emt 0:00:11]} 31. Be2 {[%emt 0:00:43]} Rc8 {[%emt 0:10:25]} 32. Rd6 {[%emt 0:01:31]} ({Better is} 32. Nb3 $16) 32... Rxd6 $14 {[%emt 0:01:52]} 33. Rxd6 {[%emt 0:00:03]} Nc6 {[%emt 0:00:06]} 34. Nb3 {[%emt 0:01:26]} Ke7 {[%emt 0:00:08]} 35. Rd2 {[%emt 0:00:53]} d6 {[%emt 0:00:06] [#]} 36. Nd1 $1 {[%emt 0:00:24]} g6 {[%emt 0:08:10]} 37. Ne3 {[%emt 0:00:27]} Rd8 {[%emt 0:01:58]} 38. c4 {[%emt 0:00:43]} bxc4 {[%emt 0:00:24]} (38... Na7 $16 39. Rd1 bxc4) 39. Bxc4 $18 {[%emt 0:00:06]} Bb7 {[%emt 0:00:09]} 40. Rh2 {[%emt 0:00:00] And now hxg6 would win.} gxh5 {[%emt 0:00:00]} 41. Nf5+ {[%emt 0:06:05]} (41. gxh5 $6 Bc8 $16) 41... Kf8 {[%emt 0:08:21]} 42. gxh5 {[%emt 0:02:30]} (42. Nxh6 $6 hxg4 43. Nxg4 (43. Nxf7 Rd7 $11) 43... Nxg4 44. fxg4 Rd7 $14) 42... d5 {[%emt 0:03:58]} 43. exd5 {[%emt 0:00:34]} Nxd5 {[%emt 0:00:07]} 44. Bxd5 {[%emt 0:07:44]} (44. Nxh6 Ne3 45. Be2 (45. Bxf7 Kg7 $11) 45... f5 $11) (44. Nc5 $18 Ba8 45. Nxh6 (45. Nxa6 Nd4 $16) (45. Bxa6 Nf4 $18)) 44... Rxd5 $16 {[%emt 0:00:20]} 45. Nxh6 {[%emt 0:00:05]} ({Of course not} 45. Nc5 $6 Bc8 46. Ne3 (46. Nxh6 f5 $11) 46... Rd8 $11) 45... Nd4 {[%emt 0:11:16]} 46. Nc5 {[%emt 0:07:35]} Bc6 {[%emt 0:05:32]} 47. Rg2 {[%emt 0:07:20] Rg8+ is the strong threat.} e4 {[%emt 0:02:19]} 48. fxe4 {[%emt 0:02:41]} Rxh5 {[%emt 0:00:30]} 49. Rd2 {[%emt 0:06:01]} Ne6 $2 {[%emt 0:02:24]} (49... Rxh6 $16 {might work better.} 50. Rxd4 Be8) 50. Nf5 $18 {[%emt 0:00:04] Pair of Knights!} Bxe4 $2 {[%emt 0:00:39]} (50... a5 {was worth a try.} 51. Rd6 (51. Nd7+ Bxd7 52. Rxd7 axb4 $16) 51... Bb5 52. Nxe6+ fxe6 53. Rxe6 Rh2+ 54. Kc3 Rh3+ 55. Kd4 Rxa3) 51. Nd7+ {[%emt 0:00:06] Weighted Error Value: White=0.10 (very precise) /Black=0.22 (precise)} ({Not} 51. Nxe4 Rxf5 52. Rd7 a5 $14) 1-0

[Event "Romanian Superleague 2022"]
[Site "Oradea"]
[Date "2022.09.27"]
[Round "7.18"]
[White "Costachi, Mihnea"]
[Black "Stoleriu, George"]
[Result "1/2-1/2"]
[ECO "A49"]
[WhiteElo "2470"]
[BlackElo "2392"]
[Annotator "TA"]
[PlyCount "45"]
[EventDate "2022.09.21"]
[EventType "team-tourn"]
[EventCountry "ROU"]
[SourceTitle "playchess.com"]
[Source "ChessBase"]
[SourceQuality "1"]
[TimeControl "40/5400+30:1800+30"]

{[%evp 20,45,52,0,7,15,1,0,11,6,10,0,0,0,0,0,0,2,0,7,31,0,21,16,15,10,23,14]} 1. d4 {[%emt 0:00:10]} Nf6 {[%emt 0:00:18]} 2. Nf3 {[%emt 0:00:20]} g6 {[%emt 0:00:52]} 3. g3 {[%emt 0:00:33]} Bg7 {[%emt 0:00:07]} 4. Bg2 {[%emt 0:00:13]} O-O {[%emt 0:00:12]} 5. O-O {[%emt 0:00:39]} d6 {[%emt 0:00:25]} 6. b3 {[%emt 0:00:30]} Nc6 {[%emt 0:11:28][%cal Bb8c6,Bc6e5,Be5d7,Bd7f6][%mdl 32]} 7. Bb2 {[%emt 0:04:36]} e5 {[%emt 0:00:22]} 8. dxe5 {[%emt 0:00:23]} Ng4 {[%emt 0:06:55]} 9. Qc1 {[%emt 0:01:16]} Ngxe5 {[%emt 0:00:49]} 10. Nxe5 {[%emt 0:03:17]} Nxe5 {[%emt 0:05:56]} 11. Nd2 {[%emt 0:24:54][%cal Bb1d2,Bd2e4,Be4c3,Bc3e2,Be2f4][%mdl 32]} Re8 {[%emt 0:05:15] A49: 1 d4 Nf6 2 Nf3 g6 3 g3: Anti-King's Indian systems.} 12. h3 {[%emt 0:06:17] [#]} a5 $146 {[%emt 0:13:15]} ({Predecessor:} 12... Rb8 13. e3 b5 14. f4 Nd7 15. Bxg7 Kxg7 16. Qb2+ Qf6 17. Qxf6+ Nxf6 18. Rfe1 Bb7 19. c4 Bxg2 20. Kxg2 {1-0 (58) Andersson,U (2562)-Arakhamia Grant,K (2448) Liverpool 2008}) 13. a4 {[%emt 0:06:49]} Nd7 {[%emt 0:03:32] The position is equal.} 14. Bxg7 {[%emt 0:01:29]} Kxg7 {[%emt 0:00:36]} 15. Ne4 {[%emt 0:03:46]} Nf6 {[%emt 0:05:59]} 16. Qb2 {[%emt 0:08:37] Threatens to win with g4.} Bd7 {[%emt 0:02:06]} 17. Nc3 {[%emt 0:04:01]} Bc6 {[%emt 0:03:17]} 18. e4 {[%emt 0:00:16]} Kg8 {[%emt 0:02:30][%cal Rf6e4]} 19. Rae1 {[%emt 0:04:55]} Re6 {[%emt 0:11:06]} 20. f3 {[%emt 0:08:43]} b6 {[%emt 0:04:54]} 21. Ne2 {[%emt 0:00:15] And now Nd4 would win.} Bb7 {[%emt 0:00:19]} 22. Nf4 {[%emt 0:02:58]} Re8 {[%emt 0:00:16]} 23. Kh2 {[%emt 0:00:59] Not much happened in this game.  Weighted Error Value: White=0.08 (flawless) /Black=0.05 (flawless)} 1/2-1/2

[Event "Romanian Superleague 2022"]
[Site "Oradea"]
[Date "2022.09.27"]
[Round "7.19"]
[White "Pranav Vijay"]
[Black "Dobre, Claudiu-Cristian"]
[Result "1-0"]
[ECO "C42"]
[WhiteElo "2265"]
[BlackElo "2268"]
[Annotator "TA"]
[PlyCount "51"]
[EventDate "2022.09.21"]
[EventType "team-tourn"]
[EventCountry "ROU"]
[SourceTitle "playchess.com"]
[Source "ChessBase"]
[SourceQuality "1"]
[TimeControl "40/5400+30:1800+30"]

{[%evp 13,51,29,40,20,12,0,0,0,8,4,62,64,52,47,79,-6,42,44,38,39,99,100,454,422,414,209,213,216,1700,1692,1612,1562,1475,1454,1132,1132,1132,1112,1018,983]} 1. e4 {[%emt 0:00:02]} e5 {[%emt 0:00:08]} 2. Nf3 {[%emt 0:00:08]} Nf6 {[%emt 0:00:06]} 3. Nxe5 {[%emt 0:00:23]} d6 {[%emt 0:00:06]} 4. Nf3 {[%emt 0:00:06]} Nxe4 {[%emt 0:00:06]} 5. Nc3 {[%emt 0:00:07]} Nf6 {[%emt 0:00:04]} 6. d4 {[%emt 0:00:11]} Be7 {[%emt 0:00:06]} 7. Bd3 {[%emt 0:00:14]} O-O {[%emt 0:00:18]} 8. Ne2 {[%emt 0:00:14] Recently 8.0-0 got a lot of attention. C42: Petroff Defence: 3 Nxe5 and unusual White 3rd moves.} c5 {[%emt 0:00:12] [#]} 9. d5 $146 {[%emt 0:03:57]} ({Predecessor:} 9. O-O Nc6 10. d5 Nb4 11. c4 b5 12. cxb5 Nxd3 13. Qxd3 a6 14. Nc3 axb5 15. Nxb5 Ba6 {0-1 (66) Rublevsky,S (2692)-Zvjaginsev,V (2672) Sochi 2016}) 9... Nxd5 {[%emt 0:01:33]} 10. Bxh7+ $1 {[%emt 0:00:24] The position is equal.} Kxh7 {[%emt 0:00:05]} 11. Qxd5 {[%emt 0:00:08]} Qd7 {[%emt 0:07:46]} (11... Nc6 $11) 12. Bg5 $14 {[%emt 0:05:39] [#] And now Qe4+ would win. White is much more active.} f6 {[%emt 0:05:40]} 13. Bf4 {[%emt 0:00:29]} Qe6 {[%emt 0:09:44]} 14. Qh5+ {[%emt 0:08:35]} Kg8 {[%emt 0:00:04]} 15. Nh4 $1 {[%emt 0:00:27]} Nc6 {[%emt 0:14:04]} 16. Ng6 {[%emt 0:06:21]} Rd8 {[%emt 0:01:21] [#]} ({Black should try} 16... Re8 $14) 17. O-O-O $1 $16 {[%emt 0:04:03]} ({But not} 17. Be3 Qf5 18. Qxf5 Bxf5 19. Nxe7+ Nxe7 $15) 17... Ne5 $2 {[%emt 0:19:25][%mdl 8192] A mistake that costs the game.} (17... b6 $16 {is a better chance.}) 18. Bxe5 $18 {[%emt 0:03:38]} fxe5 {[%emt 0:12:22]} 19. f4 {[%emt 0:01:43]} (19. g4 $142) 19... Bf6 {[%emt 0:10:37]} 20. fxe5 {[%emt 0:03:36] aiming for Rhf1.} dxe5 $2 {[%emt 0:01:13]} (20... Qf5 21. Qxf5 Bxf5) 21. Rxd8+ {[%emt 0:01:44] White is clearly winning.} Bxd8 {[%emt 0:00:05]} 22. Rf1 {[%emt 0:00:32][%csl Gg6][%cal Rh5h8]} Bf6 {[%emt 0:00:23]} 23. Nc3 {[%emt 0:00:13]} Qa6 {[%emt 0:15:57]} 24. Qh8+ {[%emt 0:00:23]} Kf7 {[%emt 0:00:04]} 25. Nxe5+ $1 {[%emt 0:00:12] Pair of Knights!} Ke7 {[%emt 0:00:16]} 26. Re1 {[%emt 0:00:09] Weighted Error Value: White=0.40/Black=0.60} 1-0

[Event "Romanian Superleague 2022"]
[Site "Oradea"]
[Date "2022.09.27"]
[Round "7.20"]
[White "Padurariu, Mihai-Edward"]
[Black "Grigore, George-Gabriel"]
[Result "1/2-1/2"]
[ECO "A48"]
[WhiteElo "2263"]
[BlackElo "2455"]
[Annotator "TA"]
[PlyCount "42"]
[EventDate "2022.09.21"]
[EventType "team-tourn"]
[EventCountry "ROU"]
[SourceTitle "playchess.com"]
[Source "ChessBase"]
[SourceQuality "1"]
[TimeControl "40/5400+30:1800+30"]

{[%evp 22,29,9,8,12,4,0,0,10,12]} 1. d4 {[%emt 0:00:08]} Nf6 {[%emt 0:00:20]} 2. Nf3 {[%emt 0:00:15]} g6 {[%emt 0:00:21]} 3. Nbd2 {[%emt 0:00:18]} c5 {[%emt 0:02:40]} 4. dxc5 {[%emt 0:00:15]} Qa5 {[%emt 0:00:27]} 5. a3 {[%emt 0:00:30]} Qxc5 {[%emt 0:00:39]} 6. b4 {[%emt 0:00:17]} Qc7 {[%emt 0:00:45]} 7. Bb2 {[%emt 0:00:14]} Bg7 {[%emt 0:00:19]} 8. e3 {[%emt 0:01:08]} d6 {[%emt 0:03:48]} 9. Be2 {[%emt 0:06:41]} b6 {[%emt 0:01:50]} 10. c4 {[%emt 0:00:55]} O-O {[%emt 0:00:26]} 11. O-O {[%emt 0:00:16]} Bb7 {[%emt 0:00:12]} 12. Qb3 {[%emt 0:00:29] The position is equal.} Nbd7 {[%emt 0:00:21] A48: 1 d4 Nf6 2 Nf3 g6: Torre, London and Colle Systems.} 13. Rfc1 {[%emt 0:01:12]} Rac8 {[%emt 0:04:15]} 14. Bc3 {[%emt 0:06:54]} Ne4 {[%emt 0:21:20]} 15. Bxg7 {[%emt 0:09:44] [#] An even fight not without its subleties.  Weighted Error Value: White=0.03 (flawless) /Black=0.05 (flawless)} {Predecessor:} Kxg7 $146 16. Qb2+ e5 17. Rd1 Rfd8 18. Nb3 Bc6 19. Rac1 Qb8 20. Ne1 Nef6 21. Nd3 Ba4 {0-1 (61) Barbot,P (2404)-Soysal,S (2114) Al Ain 2013} 1/2-1/2